[Event "NJSK 2024 B"]
[Site "Groningen, Netherlands"]
[Date "2024.05.01"]
[Round "5.5"]
[White "Krylov, Philippe"]
[Black "Kazarjan, Gachatur"]
[Result "0-1"]
[TimeControl "90min/40moves + 30min + 30sec/move"]
[WhiteElo "2007"]
[BlackElo "2203"]

1. c4 {[%clk 01:30:53]} {[%emt 00:00:06]} f5 {[%clk 01:30:50]} {[%emt
00:00:10]} 2. g3 {[%clk 01:30:53]} {[%emt 00:00:30]} e6 {[%clk 01:31:16]}
{[%emt 00:00:05]} 3. Bg2 {[%clk 01:30:55]} {[%emt 00:00:27]} Nf6 {[%clk
01:31:38]} {[%emt 00:00:08]} 4. Nf3 {[%clk 01:30:29]} {[%emt 00:00:56]} Be7
{[%clk 01:32:02]} {[%emt 00:00:06]} 5. d4 {[%clk 01:30:53]} {[%emt 00:00:05]}
O-O {[%clk 01:32:26]} {[%emt 00:00:06]} 6. d5 {[%clk 01:31:21]} {[%emt
00:00:02]} d6 {[%clk 01:23:12]} {[%emt 00:09:44]} 7. dxe6 {[%clk 01:31:47]}
{[%emt 00:00:05]} Nc6 {[%clk 01:22:55]} {[%emt 00:00:47]} 8. Nc3 {[%clk
01:21:20]} {[%emt 00:10:57]} Bxe6 {[%clk 01:19:02]} {[%emt 00:04:23]} 9. Nd5
{[%clk 01:19:25]} {[%emt 00:02:25]} Ne5 {[%clk 01:15:36]} {[%emt 00:03:56]} 10.
Nd4 {[%clk 01:16:50]} {[%emt 00:03:06]} Bc8 {[%clk 01:14:15]} {[%emt 00:01:52]}
11. O-O {[%clk 01:13:50]} {[%emt 00:03:30]} c6 {[%clk 01:13:17]} {[%emt
00:01:28]} 12. Ne3 {[%clk 01:12:16]} {[%emt 00:02:03]} Nfg4 {[%clk 01:04:09]}
{[%emt 00:09:38]} 13. Qc2 {[%clk 01:05:26]} {[%emt 00:07:21]} Nxe3 {[%clk
00:50:04]} {[%emt 00:14:35]} 14. Bxe3 {[%clk 01:05:20]} {[%emt 00:00:35]} Qe8
{[%clk 00:50:00]} {[%emt 00:00:33]} 15. Rad1 {[%clk 01:00:23]} {[%emt
00:05:27]} Qf7 {[%clk 00:38:49]} {[%emt 00:11:42]} 16. b3 {[%clk 00:59:07]}
{[%emt 00:01:47]} Bd7 {[%clk 00:37:47]} {[%emt 00:01:32]} 17. Nf3 {[%clk
00:56:18]} {[%emt 00:03:18]} Ng6 {[%clk 00:33:19]} {[%emt 00:04:58]} 18. Bc5
{[%clk 00:46:31]} {[%emt 00:10:14]} Qe6 {[%clk 00:30:26]} {[%emt 00:03:25]} 19.
Qd2 {[%clk 00:43:16]} {[%emt 00:03:45]} Be8 {[%clk 00:21:14]} {[%emt 00:09:43]}
20. Qe3 {[%clk 00:37:40]} {[%emt 00:06:06]} Ne5 {[%clk 00:16:29]} {[%emt
00:05:15]} 21. Bxa7 {[%clk 00:25:49]} {[%emt 00:12:22]} Bh5 {[%clk 00:10:44]}
{[%emt 00:06:15]} 22. a4 {[%clk 00:19:10]} {[%emt 00:07:09]} f4 {[%clk
00:09:30]} {[%emt 00:01:44]} 23. gxf4 {[%clk 00:18:35]} {[%emt 00:01:05]} Nxf3+
{[%clk 00:08:33]} {[%emt 00:01:27]} 24. Bxf3 {[%clk 00:15:21]} {[%emt
00:03:44]} Qg6+ {[%clk 00:08:49]} {[%emt 00:00:13]} 25. Kh1 {[%clk 00:15:48]}
{[%emt 00:00:03]} Bxf3+ {[%clk 00:09:13]} {[%emt 00:00:06]} 26. exf3 {[%emt
00:03:04]} Rae8 {[%clk 00:06:44]} 27. Rg1 {[%clk 00:15:18]} {[%emt 00:01:24]}
Qh5 {[%clk 00:05:48]} {[%emt 00:01:26]} 28. Bd4 {[%clk 00:14:49]} {[%emt
00:01:00]} Bf6 {[%clk 00:05:42]} {[%emt 00:00:36]} 29. Bxf6 {[%clk 00:14:23]}
{[%emt 00:00:56]} Rxf6 {[%clk 00:06:05]} {[%emt 00:00:06]} 30. Rg5 {[%clk
00:12:29]} {[%emt 00:02:24]} Rxe3 {[%clk 00:06:10]} {[%emt 00:00:25]} 31. Rxh5
{[%clk 00:12:54]} {[%emt 00:00:05]} Rxf3 {[%clk 00:06:35]} {[%emt 00:00:05]} 32.
b4 {[%clk 00:09:41]} {[%emt 00:03:43]} R3xf4 {[%clk 00:06:29]} {[%emt
00:00:35]} 33. Rc1 {[%clk 00:10:01]} {[%emt 00:00:11]} Rxf2 {[%clk 00:06:16]}
{[%emt 00:00:44]} 34. a5 {[%clk 00:07:26]} {[%emt 00:03:05]} Ra2 {[%clk
00:02:57]} {[%emt 00:03:49]} 35. Rd1 {[%clk 00:06:49]} {[%emt 00:01:07]} Rf4
{[%clk 00:02:53]} {[%emt 00:00:33]} 36. Rc1 {[%clk 00:06:50]} {[%emt 00:00:29]}
Ra4 {[%clk 00:02:38]} {[%emt 00:00:45]} 37. Rd1 {[%clk 00:06:34]} {[%emt
00:00:46]} Rxc4 {[%clk 00:02:12]} {[%emt 00:00:56]} 38. Rxd6 {[%clk 00:07:00]}
{[%emt 00:00:05]} Ra2 {[%clk 00:02:32]} {[%emt 00:00:09]} 39. Rd1 {[%clk
00:06:14]} {[%emt 00:01:16]} Rxb4 {[%clk 00:02:31]} {[%emt 00:00:31]} 40. Rf5
{[%clk 00:06:25]} {[%emt 00:00:19]} h6 {[%clk 00:02:27]} {[%emt 00:00:34]} 41.
Rc5 {[%clk 00:06:22]} {[%emt 00:00:33]} Rh4 {[%clk 00:01:53]} {[%emt 00:01:04]}
0-1

[Event "NJSK 2024 B"]
[Site "Groningen, Netherlands"]
[Date "2024.05.01"]
[Round "5.6"]
[White "Kshirsagar, Pranav"]
[Black "Roolvink, William"]
[Result "1-0"]
[TimeControl "90min/40moves + 30min + 30sec/move"]
[WhiteElo "1957"]
[BlackElo "1966"]

1. e4 {[%clk 01:30:58]} {[%emt 00:00:02]} c6 {[%clk 01:30:53]} {[%emt
00:00:08]} 2. Nf3 {[%clk 01:31:17]} {[%emt 00:00:11]} d5 {[%clk 01:31:18]}
{[%emt 00:00:06]} 3. Nc3 {[%clk 01:31:41]} {[%emt 00:00:05]} dxe4 {[%clk
01:31:46]} {[%emt 00:00:02]} 4. Nxe4 {[%clk 01:31:58]} {[%emt 00:00:13]} Nf6
{[%clk 01:32:14]} {[%emt 00:00:02]} 5. Qe2 {[%clk 01:32:24]} {[%emt 00:00:04]}
Nxe4 {[%clk 01:32:41]} {[%emt 00:00:03]} 6. Qxe4 {[%clk 01:32:44]} {[%emt
00:00:10]} Nd7 {[%clk 01:33:09]} {[%emt 00:00:02]} 7. Bc4 {[%clk 01:33:08]}
{[%emt 00:00:07]} Nf6 {[%clk 01:33:36]} {[%emt 00:00:03]} 8. Ne5 {[%clk
01:33:23]} {[%emt 00:00:14]} e6 {[%clk 01:34:04]} {[%emt 00:00:02]} 9. Qe2
{[%clk 01:33:48]} {[%emt 00:00:05]} b5 {[%clk 01:34:15]} {[%emt 00:00:19]} 10.
Bb3 {[%clk 01:32:37]} {[%emt 00:01:41]} Qc7 {[%clk 01:34:20]} {[%emt 00:00:25]}
11. d4 {[%clk 01:31:52]} {[%emt 00:01:15]} Bd6 {[%clk 01:34:24]} {[%emt
00:00:26]} 12. Bf4 {[%clk 01:31:10]} {[%emt 00:01:11]} O-O {[%clk 01:33:19]}
{[%emt 00:01:36]} 13. O-O {[%clk 01:31:32]} {[%emt 00:00:08]} a5 {[%clk
01:18:24]} {[%emt 00:15:25]} 14. c3 {[%clk 01:16:05]} {[%emt 00:15:56]} c5
{[%clk 01:16:24]} {[%emt 00:02:31]} 15. dxc5 {[%clk 01:15:38]} {[%emt
00:00:57]} Qxc5 {[%clk 01:16:37]} {[%emt 00:00:17]} 16. Rfd1 {[%clk 01:11:44]}
{[%emt 00:04:24]} Rd8 {[%clk 00:54:03]} {[%emt 00:23:04]} 17. Bg5 {[%clk
01:02:37]} {[%emt 00:09:37]} Be7 {[%clk 00:34:47]} {[%emt 00:19:45]} 18. Bxf6
{[%clk 00:50:11]} {[%emt 00:12:55]} Rxd1+ {[%clk 00:23:40]} {[%emt 00:11:37]}
19. Rxd1 {[%clk 00:50:39]} {[%emt 00:00:02]} Bxf6 {[%clk 00:21:22]} {[%emt
00:02:48]} 20. Qf3 {[%clk 00:45:42]} {[%emt 00:05:27]} Ra7 {[%clk 00:17:41]}
{[%emt 00:04:11]} 21. Ng4 {[%clk 00:42:18]} {[%emt 00:03:55]} Be7 {[%clk
00:16:31]} {[%emt 00:01:40]} 22. Bc2 {[%clk 00:41:04]} {[%emt 00:01:44]} f5
{[%clk 00:09:28]} {[%emt 00:07:33]} 23. Ne3 {[%clk 00:39:15]} {[%emt 00:02:18]}
Bd6 {[%clk 00:04:18]} {[%emt 00:05:40]} 24. h4 {[%clk 00:19:59]} {[%emt
00:19:45]} Bb7 {[%clk 00:00:36]} {[%emt 00:04:13]} 25. Qh5 {[%clk 00:18:57]}
{[%emt 00:01:32]} Ra8 {[%clk 00:00:43]} {[%emt 00:00:24]} 26. Bb3 {[%clk
00:16:24]} {[%emt 00:03:03]} g6 {[%clk 00:00:33]} {[%emt 00:00:39]} 27. Bxe6+
{[%clk 00:16:18]} {[%emt 00:00:35]} Kh8 {[%clk 00:00:37]} {[%emt 00:00:26]} 28.
Qg5 {[%clk 00:16:13]} {[%emt 00:00:35]} Qe5 {[%clk 00:00:39]} {[%emt 00:00:28]}
29. Rxd6 {[%clk 00:16:19]} {[%emt 00:00:24]} Re8 {[%clk 00:00:40]} {[%emt
00:00:29]} 30. Rb6 {[%clk 00:13:56]} {[%emt 00:02:52]} Rxe6 {[%clk 00:00:31]}
{[%emt 00:00:40]} 31. Rxb7 {[%clk 00:14:15]} {[%emt 00:00:11]} Re8 {[%clk
00:00:37]} {[%emt 00:00:24]} 32. Qh6 {[%emt 00:00:59]} 1-0

[Event "NJSK 2024 B"]
[Site "Groningen, Netherlands"]
[Date "2024.05.01"]
[Round "5.7"]
[White "Fallaux, Storm"]
[Black "Lopes, Samuel"]
[Result "0-1"]
[TimeControl "90min/40moves + 30min + 30sec/move"]
[WhiteElo "1905"]
[BlackElo "1906"]

1. e4 {[%clk 01:30:55]} {[%emt 00:00:03]} c5 {[%clk 01:30:07]} {[%emt
00:00:53]} 2. Nf3 {[%clk 01:31:18]} {[%emt 00:00:08]} Nc6 {[%clk 01:30:21]}
{[%emt 00:00:17]} 3. d4 {[%clk 01:31:38]} {[%emt 00:00:09]} cxd4 {[%clk
01:30:37]} {[%emt 00:00:14]} 4. Nxd4 {[%clk 01:32:01]} {[%emt 00:00:06]} Nf6
{[%clk 01:30:46]} {[%emt 00:00:22]} 5. Nc3 {[%clk 01:32:23]} {[%emt 00:00:08]}
e5 {[%clk 01:29:42]} {[%emt 00:01:33]} 6. Ndb5 {[%clk 01:32:45]} {[%emt
00:00:09]} d6 {[%clk 01:30:01]} {[%emt 00:00:11]} 7. Bg5 {[%clk 01:32:54]}
{[%emt 00:00:20]} a6 {[%clk 01:30:17]} {[%emt 00:00:14]} 8. Na3 {[%clk
01:33:16]} {[%emt 00:00:08]} b5 {[%clk 01:30:30]} {[%emt 00:00:18]} 9. Nd5
{[%clk 01:33:36]} {[%emt 00:00:10]} Be7 {[%clk 01:30:43]} {[%emt 00:00:16]} 10.
Bxf6 {[%clk 01:33:55]} {[%emt 00:00:11]} Bxf6 {[%clk 01:30:56]} {[%emt
00:00:17]} 11. c4 {[%clk 01:34:15]} {[%emt 00:00:10]} b4 {[%clk 01:30:55]}
{[%emt 00:00:30]} 12. Nc2 {[%clk 01:34:32]} {[%emt 00:00:14]} O-O {[%clk
01:31:15]} {[%emt 00:00:10]} 13. g3 {[%clk 01:34:44]} {[%emt 00:00:18]} a5
{[%clk 01:31:28]} {[%emt 00:00:16]} 14. h4 {[%clk 01:34:56]} {[%emt 00:00:18]}
g6 {[%clk 01:28:42]} {[%emt 00:03:17]} 15. Bh3 {[%clk 01:34:05]} {[%emt
00:01:20]} Be6 {[%clk 01:21:04]} {[%emt 00:08:09]} 16. Kf1 {[%clk 01:31:15]}
{[%emt 00:03:19]} Bg7 {[%clk 01:20:23]} {[%emt 00:01:12]} 17. h5 {[%clk
01:29:32]} {[%emt 00:02:12]} Ra7 {[%clk 01:13:49]} {[%emt 00:07:05]} 18. hxg6
{[%clk 01:24:19]} {[%emt 00:05:42]} hxg6 {[%clk 01:14:05]} {[%emt 00:00:15]} 19.
Kg2 {[%clk 01:07:10]} {[%emt 00:17:39]} Rb7 {[%clk 01:06:21]} {[%emt 00:08:14]}
20. b3 {[%clk 00:58:04]} {[%emt 00:09:35]} Nb8 {[%clk 01:03:08]} {[%emt
00:03:44]} 21. Qe2 {[%clk 00:49:52]} {[%emt 00:08:42]} Na6 {[%clk 00:59:18]}
{[%emt 00:04:20]} 22. Raf1 {[%clk 00:44:31]} {[%emt 00:05:50]} Nc5 {[%clk
00:56:41]} {[%emt 00:03:08]} 23. Ne1 {[%clk 00:42:44]} {[%emt 00:02:17]} Qd7
{[%clk 00:49:46]} {[%emt 00:07:25]} 24. Nd3 {[%clk 00:36:24]} {[%emt 00:06:49]}
Bxh3+ {[%clk 00:45:18]} {[%emt 00:04:59]} 25. Rxh3 {[%clk 00:36:38]} {[%emt
00:00:15]} Ne6 {[%clk 00:45:32]} {[%emt 00:00:17]} 26. Qe3 {[%clk 00:23:01]}
{[%emt 00:14:06]} f5 {[%clk 00:43:09]} {[%emt 00:02:54]} 27. exf5 {[%clk
00:20:51]} {[%emt 00:02:40]} Rxf5 {[%clk 00:42:48]} {[%emt 00:00:51]} 28. f4
{[%clk 00:18:59]} {[%emt 00:02:22]} Nc7 {[%clk 00:19:15]} {[%emt 00:24:04]} 29.
Qe4 {[%clk 00:13:40]} {[%emt 00:05:48]} Ne6 {[%clk 00:15:57]} {[%emt 00:03:49]}
30. Rhh1 {[%clk 00:11:30]} {[%emt 00:02:39]} exf4 {[%clk 00:12:07]} {[%emt
00:04:21]} 31. N5xf4 {[%clk 00:10:31]} {[%emt 00:01:29]} Ng5 {[%clk 00:11:11]}
{[%emt 00:01:25]} 32. Qe3 {[%clk 00:08:20]} {[%emt 00:02:41]} Qc6+ {[%clk
00:07:50]} {[%emt 00:03:52]} 33. Kh2 {[%clk 00:05:56]} {[%emt 00:02:54]} Bd4
{[%clk 00:06:13]} {[%emt 00:02:07]} 34. Qxd4 {[%clk 00:03:37]} {[%emt
00:02:48]} Rh7+ {[%clk 00:06:35]} {[%emt 00:00:09]} 35. Kg1 {[%clk 00:03:44]}
{[%emt 00:00:22]} Rxh1+ {[%clk 00:06:54]} {[%emt 00:00:11]} 36. Kf2 {[%clk
00:04:06]} {[%emt 00:00:08]} Qf3+ {[%clk 00:07:17]} {[%emt 00:00:07]} 0-1

[Event "NJSK 2024 B"]
[Site "Groningen, Netherlands"]
[Date "2024.05.01"]
[Round "5.8"]
[White "Heus, Daan"]
[Black "Ponomarev, Ivan"]
[Result "0-1"]
[TimeControl "90min/40moves + 30min + 30sec/move"]
[WhiteElo "1921"]
[BlackElo "1924"]

1. c4 {[%clk 01:30:57]} {[%emt 00:00:03]} e6 {[%clk 01:30:58]} {[%emt
00:00:03]} 2. d4 {[%clk 01:31:16]} {[%emt 00:00:11]} d5 {[%clk 01:31:24]}
{[%emt 00:00:03]} 3. Nf3 {[%clk 01:31:31]} {[%emt 00:00:14]} Nf6 {[%clk
01:31:48]} {[%emt 00:00:07]} 4. g3 {[%clk 01:31:55]} {[%emt 00:00:06]} Be7
{[%clk 01:29:49]} {[%emt 00:02:29]} 5. Bg2 {[%clk 01:32:00]} {[%emt 00:00:24]}
O-O {[%clk 01:30:04]} {[%emt 00:00:16]} 6. O-O {[%clk 01:32:14]} {[%emt
00:00:15]} c5 {[%clk 01:19:58]} {[%emt 00:10:37]} 7. cxd5 {[%clk 01:31:20]}
{[%emt 00:01:23]} Nxd5 {[%clk 01:19:30]} {[%emt 00:00:59]} 8. e4 {[%clk
01:30:08]} {[%emt 00:01:42]} Nb6 {[%clk 01:17:15]} {[%emt 00:02:46]} 9. b3
{[%clk 01:23:24]} {[%emt 00:07:13]} cxd4 {[%clk 01:07:48]} {[%emt 00:09:57]} 10.
Bb2 {[%clk 01:14:48]} {[%emt 00:09:07]} Nc6 {[%clk 01:01:43]} {[%emt 00:06:35]}
11. e5 {[%clk 00:59:21]} {[%emt 00:15:56]} f6 {[%clk 00:41:46]} {[%emt
00:20:27]} 12. Nxd4 {[%clk 00:49:50]} {[%emt 00:10:01]} Nxe5 {[%clk 00:38:32]}
{[%emt 00:03:44]} 13. Qe2 {[%clk 00:45:50]} {[%emt 00:04:30]} Bc5 {[%clk
00:34:08]} {[%emt 00:04:54]} 14. Rd1 {[%clk 00:43:57]} {[%emt 00:02:23]} Qe7
{[%clk 00:30:40]} {[%emt 00:03:57]} 15. Nc3 {[%clk 00:39:55]} {[%emt 00:04:33]}
Bxd4 {[%clk 00:26:57]} {[%emt 00:04:13]} 16. Rxd4 {[%clk 00:39:32]} {[%emt
00:00:52]} Nc6 {[%clk 00:27:25]} {[%emt 00:00:03]} 17. Bxc6 {[%clk 00:29:08]}
{[%emt 00:10:54]} bxc6 {[%clk 00:27:25]} {[%emt 00:00:30]} 18. Rad1 {[%clk
00:27:50]} {[%emt 00:01:48]} Re8 {[%clk 00:11:20]} {[%emt 00:16:35]} 19. Qd3
{[%clk 00:21:00]} {[%emt 00:07:20]} Nd5 {[%clk 00:10:25]} {[%emt 00:01:25]} 20.
Rh4 {[%clk 00:17:22]} {[%emt 00:04:08]} g6 {[%clk 00:08:42]} {[%emt 00:02:14]}
21. Qf3 {[%clk 00:14:33]} {[%emt 00:03:19]} Rf8 {[%clk 00:05:44]} {[%emt
00:03:28]} 22. Ra4 {[%clk 00:11:26]} {[%emt 00:03:37]} Rf7 {[%clk 00:04:49]}
{[%emt 00:01:25]} 23. Re1 {[%clk 00:09:11]} {[%emt 00:02:44]} Bd7 {[%clk
00:04:50]} {[%emt 00:00:29]} 24. Rd4 {[%clk 00:08:16]} {[%emt 00:01:25]} Qd8
{[%clk 00:01:02]} {[%emt 00:04:16]} 25. Rc4 {[%clk 00:05:24]} {[%emt 00:03:25]}
Qa5 {[%clk 00:00:59]} {[%emt 00:00:32]} 26. Ra4 {[%clk 00:05:03]} {[%emt
00:00:51]} Qb6 {[%clk 00:01:17]} {[%emt 00:00:13]} 27. h4 {[%clk 00:04:20]}
{[%emt 00:01:12]} Rd8 {[%clk 00:01:06]} {[%emt 00:00:41]} 28. Nxd5 {[%clk
00:04:16]} {[%emt 00:00:35]} cxd5 {[%clk 00:01:28]} {[%emt 00:00:08]} 29. Bd4
{[%clk 00:03:59]} {[%emt 00:00:46]} Qb8 {[%clk 00:00:57]} {[%emt 00:01:01]} 30.
Bxa7 {[%clk 00:03:30]} {[%emt 00:00:59]} Qb7 {[%clk 00:00:46]} {[%emt
00:00:42]} 31. Rg4 {[%clk 00:00:33]} {[%emt 00:03:26]} Qxa7 {[%clk 00:01:09]}
{[%emt 00:00:07]} 32. h5 {[%clk 00:00:44]} {[%emt 00:00:19]} g5 {[%clk
00:00:46]} {[%emt 00:00:53]} 33. Rb4 {[%clk 00:00:33]} {[%emt 00:00:41]} Qxa2
{[%clk 00:00:47]} {[%emt 00:00:30]} 34. h6 {[%clk 00:00:33]} {[%emt 00:00:30]}
Qd2 {[%clk 00:00:58]} {[%emt 00:00:17]} 0-1

[Event "NJSK 2024 B"]
[Site "Groningen, Netherlands"]
[Date "2024.05.02"]
[Round "6.1"]
[White "Madularea, David"]
[Black "Smeets, Kobe"]
[Result "0-1"]
[TimeControl "90min/40moves + 30min + 30sec/move"]
[WhiteElo "2022"]
[BlackElo "2274"]

1. e4 {[%clk 01:30:54]} {[%emt 00:00:05]} c5 {[%clk 01:30:45]} {[%emt
00:00:15]} 2. Nf3 {[%clk 01:31:18]} {[%emt 00:00:07]} e6 {[%clk 01:31:13]}
{[%emt 00:00:03]} 3. d4 {[%clk 01:31:40]} {[%emt 00:00:07]} cxd4 {[%clk
01:31:41]} {[%emt 00:00:02]} 4. Nxd4 {[%clk 01:32:02]} {[%emt 00:00:07]} Nc6
{[%clk 01:32:06]} {[%emt 00:00:05]} 5. Be2 {[%clk 01:32:12]} {[%emt 00:00:20]}
Nf6 {[%clk 01:31:46]} {[%emt 00:00:51]} 6. Nc3 {[%clk 01:32:37]} {[%emt
00:00:06]} Qc7 {[%clk 01:32:10]} {[%emt 00:00:06]} 7. Ndb5 {[%clk 01:32:55]}
{[%emt 00:00:11]} Qb8 {[%clk 01:32:38]} {[%emt 00:00:02]} 8. f4 {[%clk
01:33:17]} {[%emt 00:00:08]} a6 {[%clk 01:33:07]} {[%emt 00:00:02]} 9. e5
{[%clk 01:33:41]} {[%emt 00:00:05]} axb5 {[%clk 01:33:35]} {[%emt 00:00:02]} 10.
exf6 {[%clk 01:34:05]} {[%emt 00:00:05]} b4 {[%clk 01:34:03]} {[%emt 00:00:03]}
11. fxg7 {[%clk 01:34:26]} {[%emt 00:00:09]} Bxg7 {[%clk 01:34:32]} {[%emt
00:00:02]} 12. Nb5 {[%clk 01:34:47]} {[%emt 00:00:09]} d5 {[%clk 01:34:51]}
{[%emt 00:00:11]} 13. O-O {[%clk 01:35:11]} {[%emt 00:00:06]} O-O {[%clk
01:34:57]} {[%emt 00:00:24]} 14. Kh1 {[%clk 01:35:35]} {[%emt 00:00:05]} f5
{[%clk 01:28:16]} {[%emt 00:07:11]} 15. Rf3 {[%clk 01:34:49]} {[%emt 00:01:15]}
Rf6 {[%clk 01:20:23]} {[%emt 00:08:24]} 16. c3 {[%clk 01:29:12]} {[%emt
00:06:08]} bxc3 {[%clk 01:16:58]} {[%emt 00:03:55]} 17. bxc3 {[%clk 01:29:11]}
{[%emt 00:00:32]} Rg6 {[%clk 01:14:27]} {[%emt 00:03:01]} 18. Be3 {[%clk
01:18:51]} {[%emt 00:10:50]} Bd7 {[%clk 01:11:01]} {[%emt 00:03:56]} 19. Rh3
{[%clk 01:11:56]} {[%emt 00:07:26]} Bf6 {[%clk 01:03:25]} {[%emt 00:08:06]} 20.
c4 {[%clk 00:45:22]} {[%emt 00:27:04]} Bxa1 {[%clk 00:59:00]} {[%emt 00:04:55]}
21. Qxa1 {[%clk 00:45:41]} {[%emt 00:00:11]} d4 {[%clk 00:41:19]} {[%emt
00:18:10]} 22. Bh5 {[%clk 00:38:26]} {[%emt 00:07:45]} Rg7 {[%clk 00:41:41]}
{[%emt 00:00:09]} 23. Nxd4 {[%clk 00:38:08]} {[%emt 00:00:48]} Qd6 {[%clk
00:37:47]} {[%emt 00:04:24]} 24. Nb5 {[%clk 00:33:59]} {[%emt 00:04:39]} Qb4
{[%clk 00:35:33]} {[%emt 00:02:44]} 25. Be2 {[%clk 00:27:38]} {[%emt 00:06:51]}
Qa4 {[%clk 00:31:56]} {[%emt 00:04:07]} 26. a3 {[%clk 00:26:37]} {[%emt
00:01:31]} Qc2 {[%clk 00:31:43]} {[%emt 00:00:43]} 27. Qf1 {[%clk 00:21:36]}
{[%emt 00:05:30]} Rf8 {[%clk 00:26:13]} {[%emt 00:06:00]} 28. Bd3 {[%clk
00:16:52]} {[%emt 00:05:15]} Qb2 {[%clk 00:25:46]} {[%emt 00:00:57]} 29. Rf3
{[%clk 00:15:44]} {[%emt 00:01:38]} Qf6 {[%clk 00:21:35]} {[%emt 00:04:42]} 30.
Bd2 {[%clk 00:15:23]} {[%emt 00:00:50]} Rg6 {[%clk 00:08:43]} {[%emt 00:13:23]}
31. Bc3 {[%clk 00:14:54]} {[%emt 00:00:59]} Qe7 {[%clk 00:09:04]} {[%emt
00:00:09]} 32. Qf2 {[%clk 00:05:26]} {[%emt 00:09:57]} Rd8 {[%clk 00:06:35]}
{[%emt 00:03:00]} 33. Ba1 {[%clk 00:04:35]} {[%emt 00:01:22]} e5 {[%clk
00:05:29]} {[%emt 00:01:36]} 34. fxe5 {[%clk 00:04:52]} {[%emt 00:00:13]} Nxe5
{[%clk 00:03:46]} {[%emt 00:02:13]} 35. Qe2 {[%clk 00:01:49]} {[%emt 00:03:33]}
Bc6 {[%clk 00:02:41]} {[%emt 00:01:35]} 36. Rg3 {[%clk 00:00:35]} {[%emt
00:01:44]} Rxd3 {[%clk 00:01:10]} {[%emt 00:02:01]} 37. Bxe5 {[%clk 00:00:45]}
{[%emt 00:00:20]} Qxe5 {[%clk 00:01:22]} {[%emt 00:00:18]} 38. Qxe5 {[%clk
00:01:04]} {[%emt 00:00:12]} Rd1+ {[%clk 00:01:47]} {[%emt 00:00:04]} 39. Qe1
{[%clk 00:01:31]} {[%emt 00:00:03]} Rxe1# {[%clk 00:02:12]} {[%emt 00:00:05]}
0-1

[Event "NJSK 2024 B"]
[Site "Groningen, Netherlands"]
[Date "2024.05.02"]
[Round "6.2"]
[White "Arnold, Rhys"]
[Black "Zhu, Chenwu"]
[Result "1-0"]
[TimeControl "90min/40moves + 30min + 30sec/move"]
[WhiteElo "2185"]
[BlackElo "2020"]

1. e4 {[%clk 01:30:31]} {[%emt 00:00:27]} e5 {[%clk 01:30:48]} {[%emt
00:00:13]} 2. Nf3 {[%clk 01:30:41]} {[%emt 00:00:20]} Nc6 {[%clk 01:31:13]}
{[%emt 00:00:06]} 3. Bb5 {[%clk 01:31:07]} {[%emt 00:00:04]} a6 {[%clk
01:31:32]} {[%emt 00:00:11]} 4. Ba4 {[%clk 01:31:29]} {[%emt 00:00:08]} Nf6
{[%clk 01:31:51]} {[%emt 00:00:11]} 5. O-O {[%clk 01:31:32]} {[%emt 00:00:27]}
Be7 {[%clk 01:30:28]} {[%emt 00:01:53]} 6. Re1 {[%clk 01:31:45]} {[%emt
00:00:16]} b5 {[%clk 01:30:53]} {[%emt 00:00:06]} 7. Bb3 {[%clk 01:32:12]}
{[%emt 00:00:03]} O-O {[%clk 01:31:09]} {[%emt 00:00:13]} 8. a4 {[%clk
01:32:26]} {[%emt 00:00:16]} Bb7 {[%clk 01:31:12]} {[%emt 00:00:28]} 9. d3
{[%clk 01:30:38]} {[%emt 00:02:17]} d6 {[%clk 01:31:15]} {[%emt 00:00:26]} 10.
Bg5 {[%clk 01:21:13]} {[%emt 00:09:55]} Na5 {[%clk 01:23:33]} {[%emt 00:08:13]}
11. Ba2 {[%clk 01:21:18]} {[%emt 00:00:25]} c5 {[%clk 01:20:47]} {[%emt
00:03:16]} 12. Nc3 {[%clk 01:16:38]} {[%emt 00:05:10]} b4 {[%clk 01:18:56]}
{[%emt 00:02:20]} 13. Bxf6 {[%clk 01:15:34]} {[%emt 00:01:34]} Bxf6 {[%clk
01:18:52]} {[%emt 00:00:34]} 14. Nd5 {[%clk 01:15:54]} {[%emt 00:00:10]} Nc6
{[%clk 01:12:51]} {[%emt 00:06:31]} 15. Qd2 {[%clk 01:12:48]} {[%emt 00:03:36]}
g6 {[%clk 01:10:28]} {[%emt 00:02:53]} 16. c3 {[%clk 01:06:47]} {[%emt
00:06:30]} a5 {[%clk 01:07:59]} {[%emt 00:02:59]} 17. Nxf6+ {[%clk 00:59:50]}
{[%emt 00:07:28]} Qxf6 {[%clk 01:08:24]} {[%emt 00:00:05]} 18. Rad1 {[%clk
00:59:26]} {[%emt 00:00:54]} Kg7 {[%clk 01:03:37]} {[%emt 00:05:17]} 19. h3
{[%clk 00:57:38]} {[%emt 00:02:18]} Rac8 {[%clk 01:01:12]} {[%emt 00:02:56]} 20.
Bd5 {[%clk 00:54:05]} {[%emt 00:04:03]} Nd8 {[%clk 00:43:47]} {[%emt 00:17:55]}
21. Bxb7 {[%clk 00:50:34]} {[%emt 00:04:01]} Nxb7 {[%clk 00:43:35]} {[%emt
00:00:41]} 22. Qe3 {[%clk 00:50:08]} {[%emt 00:00:56]} Nd8 {[%clk 00:37:53]}
{[%emt 00:06:12]} 23. d4 {[%clk 00:48:34]} {[%emt 00:02:04]} bxc3 {[%clk
00:29:28]} {[%emt 00:08:55]} 24. dxe5 {[%clk 00:44:29]} {[%emt 00:04:35]} dxe5
{[%clk 00:29:46]} {[%emt 00:00:11]} 25. bxc3 {[%clk 00:44:46]} {[%emt
00:00:13]} Ne6 {[%clk 00:26:18]} {[%emt 00:03:59]} 26. g3 {[%clk 00:40:57]}
{[%emt 00:04:19]} Rfd8 {[%clk 00:24:52]} {[%emt 00:01:56]} 27. Rd5 {[%clk
00:40:43]} {[%emt 00:00:44]} h5 {[%clk 00:17:49]} {[%emt 00:07:34]} 28. h4
{[%clk 00:39:56]} {[%emt 00:01:17]} Qe7 {[%clk 00:16:44]} {[%emt 00:01:35]} 29.
Nxe5 {[%clk 00:37:48]} {[%emt 00:02:38]} Qe8 {[%clk 00:14:04]} {[%emt
00:03:11]} 30. Nc4 {[%clk 00:34:05]} {[%emt 00:04:13]} Rb8 {[%clk 00:13:11]}
{[%emt 00:01:24]} 31. Ra1 {[%clk 00:33:44]} {[%emt 00:00:51]} Ra8 {[%clk
00:08:53]} {[%emt 00:04:49]} 32. Qf3 {[%clk 00:27:42]} {[%emt 00:06:31]} Ra7
{[%clk 00:07:08]} {[%emt 00:02:16]} 33. e5 {[%clk 00:26:12]} {[%emt 00:01:59]}
Qc6 {[%clk 00:06:04]} {[%emt 00:01:34]} 34. Qf6+ {[%clk 00:26:15]} {[%emt
00:00:27]} Kh7 {[%clk 00:06:10]} {[%emt 00:00:24]} 35. Rxd8 {[%clk 00:26:26]}
{[%emt 00:00:19]} Nxd8 {[%clk 00:06:31]} {[%emt 00:00:09]} 36. Qxd8 {[%clk
00:26:30]} {[%emt 00:00:26]} Rd7 {[%clk 00:06:09]} {[%emt 00:00:52]} 37. Qf6
{[%clk 00:26:42]} {[%emt 00:00:17]} Qe4 {[%clk 00:06:26]} {[%emt 00:00:13]} 38.
Nd6 {[%clk 00:26:31]} {[%emt 00:00:41]} 1-0